Cogmind - Beta 14 @@@ ROGUE MODE // 2024.09.02 @ 11:52:57 Player: puppuppit Result: Destroyed by IQ-BTD(R) with Subdweller Machine Gun Performance ------------- Evolutions (0) 0 Regions Visited (3) 600 Robots Destroyed (47) 235 Value Destroyed (921) 921 Prototype IDs (6) 120 Alien Tech Used (0) 0 Bonus (0) 0 TOTAL SCORE: 1876 Bonus ------- None Cogmind --------- Core Integrity 0/250 Matter 42/300 Energy 100/100 System Corruption 0% Temperature Cool (0) Movement Rolling (80) Location -10/Subcaves Parts ------- > --- POWER (1) -------- (None) > --- PROPULSION (2) --- Wheel Wheel > --- UTILITY (2) ------ Medium Storage Unit Light Armor Plating > --- WEAPON (2) ------- Battle Cannon Grenade Launcher > --- INVENTORY (10) --- Wheel Wheel High-capacity Matter Pod (118) Weapon Shielding Light Cannon Light Cannon Light Cannon Subdweller Shrapnel Launcher Signal Generator Peak State ------------ > --- POWER ------------ Light Nuclear Core > --- PROPULSION ------- Wheel Compact Wheel > --- UTILITY ---------- Medium Storage Unit Weapon Shielding > --- WEAPON ----------- Assault Rifle Grenade Launcher > --- INVENTORY -------- Wheel Wheel Wheel Hover Unit High-capacity Matter Pod Weapon Shielding Weapon Shielding Tractor Beam Light Assault Rifle Light Assault Rifle [Rating: 10] Favorites ----------- Power Light Ion Engine Engine Light Ion Engine Power Core Light Nuclear Core Propulsion Wheel Wheel Wheel Utility Medium Storage Unit Device Tractor Beam Storage Medium Storage Unit Protection Weapon Shielding Weapon Light Cannon Energy Gun EM Pulse Gun Ballistic Gun Assault Rifle Ballistic Cannon Light Cannon Launcher Grenade Launcher Build | -11 -10 -10 -10 ------- Run | Yrd Mat Min Sub Slots Evolved . | . . . . Power . | . . . . Propulsion . | . . . . Utility . | . . . . Weapon . | . . . . Parts Attached 44 | 6 23 5 10 Power 4 | . 3 1 . Engine 3 | . 2 1 . Core 1 | . 1 . . Reactor . | . . . . Propulsion 13 | 2 7 3 1 Treads . | . . . . Leg . | . . . . Wheel 13 | 2 7 3 1 Hover . | . . . . Flight . | . . . . Utility 5 | 2 2 . 1 Device 1 | 1 . . . Storage 2 | 1 1 . . Processor . | . . . . Hackware . | . . . . Protection 2 | . 1 . 1 Artifact . | . . . . Weapon 22 | 2 11 1 8 Energy Gun 2 | 1 1 . . Energy Cannon . | . . . . Ballistic Gun 6 | 1 5 . . Ballistic Cannon 6 | . 2 . 4 Launcher 8 | . 3 1 4 Special Weapon . | . . . . Impact Weapon . | . . . . Slashing Weapon . | . . . . Piercing Weapon . | . . . . Special Melee Weapon . | . . . . Unidentified Prototypes . | . . . . Parts Lost 3 | . 1 . 2 Power 2 | . 1 . 1 Propulsion 1 | . . . 1 Utility . | . . . . Weapon . | . . . . Highest Loss Streak 2 | . 1 . 2 To Critical Strikes . | . . . . Average Slot Usage (%) 96 | . 99 92 91 Engine 6 | . 6 6 6 Core 3 | . 6 . . Wheel 27 | . 28 28 27 Device 2 | . 3 . . Storage 14 | . 14 14 14 Protection 11 | . 10 14 14 Energy Gun 1 | . 3 . . Ballistic Gun 7 | . 13 . . Ballistic Cannon 14 | . 9 26 21 Launcher 3 | . 2 1 7 Peak Build Rating 10 | 6 10 8 9 Average Rating 8 | 5 8 7 7 On Entrance 5 | . 6 7 8 Naked Turns . | . . . . Heaviest Build 22 | 9 22 20 20 Greatest Support 26 | 26 26 20 20 Greatest Overweight (x) 1 | . 1 . 1 Average Overweight (x) . | . . . . Largest Inventory Capacity 10 | 8 10 10 10 Average Capacity 9 | 7 9 10 10 Most Carried 10 | 1 10 10 10 Average Carried 8 | . 9 9 9 Final Capacity 10 | 8 10 10 10 Final Carried 10 | 1 10 10 9 Class Distribution -------------------- 100% | Mutant Dominant Class ---------------- Mutant | -10/Materials Mutant | -10/Mines Mutant | -10/Subcaves Resources | -11 -10 -10 -10 ----------- Run | Yrd Mat Min Sub Matter Collected 1253 | 272 520 268 193 Remotely 84 | 43 41 . . Salvage Created 1120 | 138 633 232 117 Parts 100 | 11 56 23 10 Haulers Intercepted 2 | . 2 . . Recyclers Shooed 3 | . . 3 . Parts Field Recycled . | . . . . Retrieved Matter . | . . . . Parts Self-Destructed . | . . . . Prevented . | . . . . Kills | -11 -10 -10 -10 ------- Run | Yrd Mat Min Sub Combat Hostiles Destroyed 21 | . 13 2 6 Guns 3 | . 3 . . Cannons 8 | . 3 2 3 AOE 10 | . 7 . 3 Classes Destroyed 11 | 2 6 2 1 Worker 9 | . 7 2 . Builder 2 | . . 2 . Tunneler 7 | 3 1 3 . Hauler 2 | . 2 . . Recycler 2 | 1 . 1 . Mechanic 1 | . 1 . . Watcher 3 | . 3 . . Swarmer 3 | . 3 . . Grunt 10 | . 10 . . Sentry 2 | . . 2 . Subdweller 6 | . . . 6 Best Kill Streak 6 | 4 5 6 3 Combat Bots Only 4 | . 4 2 3 Max Kills in Single Turn 2 | 1 2 1 1 Gunslinging . | . . . . Exploded 2 | . 2 . 1 Melee . | . . . . Uniques/NPCs Destroyed . | . . . . Combat | -11 -10 -10 -10 -------- Run | Yrd Mat Min Sub Hostile Shots Fired 55 | . 27 8 20 Missed 18 | . 10 3 5 Damage Taken 818 | . 196 67 555 Core 261 | . 56 15 190 Absorbed by Shields . | . . . . Redirected to Shielding 43 | . 9 7 27 Core Remaining (%) 100 | 100 . . . Volleys Fired 105 | 12 46 21 26 Largest 2 | 2 2 2 2 Hottest 70 | 60 70 70 70 Shots Fired 180 | 24 83 40 33 Gun 65 | 24 41 . . Cannon 87 | . 30 38 19 Launcher 28 | . 12 2 14 Special . | . . . . Kinetic 142 | 12 68 38 24 Thermal . | . . . . Explosive 23 | . 12 2 9 Electromagnetic 15 | 12 3 . . Robot Hit Streak 12 | 5 7 12 8 Robot Miss Streak 4 | 2 3 2 4 Penetration Max . | . . . . Secondary Targets . | . . . . Shots Hit Robots 101 | 15 46 25 15 Core Hits 69 | 6 41 12 10 Critical Kills . | . . . . Critical Parts Destroyed . | . . . . Critical Strikes 2 | . . . 2 Blast 2 | . . . 2 Melee Attacks . | . . . . Impact . | . . . . Slashing . | . . . . Piercing . | . . . . Sneak Attacks . | . . . . Combat Hostiles . | . . . . Follow-up Attacks . | . . . . Damage Inflicted 2844 | 164 1299 498 883 Guns 469 | 164 305 . . Cannons 973 | . 327 463 183 Explosions 1402 | . 667 35 700 Melee . | . . . . Ramming . | . . . . Kinetic 1568 | 57 599 463 449 Thermal . | . . . . Explosive 1060 | . 591 35 434 Electromagnetic 216 | 107 109 . . Impact . | . . . . Slashing . | . . . . Piercing . | . . . . Highest Corruption . | . . . . Average Corruption . | . . . . Corruption Purged . | . . . . Corruption Blocked . | . . . . Overload Shots . | . . . . Overflow Damage 31 | . 8 15 8 Projectiles 15 | . . 15 . Explosions 16 | . 8 . 8 Melee . | . . . . Knockbacks 12 | . 6 4 2 Impact . | . . . . Kinetic 11 | . 5 4 2 Secondary 1 | . 1 . . Self-Inflicted Damage 31 | . . . 31 Shots 2 | . . . 2 Rammed . | . . . . Targets Rammed . | . . . . Kicked . | . . . . Crushed . | . . . . Highest Temperature 60 | 20 60 21 . Average Temperature 10 | 8 11 8 . Received Heat Transfer 159 | . 105 45 9 Siege Activations . | . . . . Robots Corrupted . | . . . . Combat Hostiles . | . . . . Parts Fried . | . . . . Impact Corruptions . | . . . . Robots Melted . | . . . . Combat Hostiles . | . . . . Parts Melted . | . . . . Heat Transferred . | . . . . Parts Sabotaged . | . . . . Parts Stolen . | . . . . Parts Stripped . | . . . . Power Chain Reactions . | . . . . Alert | -11 -10 -10 -10 ------- Run | Yrd Mat Min Sub Peak Influence 314 | 20 314 172 . Initial 58 | . 13 58 . Average 159 | 6 181 132 . Maximum Alert Level 1 | . 1 . . Low Security (%) 74 | 100 65 100 . Level 1 25 | . 34 . . Level 2 . | . . . . Level 3 . | . . . . Level 4 . | . . . . Level 5 . | . . . . High Security . | . . . . Max Security . | . . . . Squads Dispatched 3 | . 3 . . Investigation 3 | . 3 . . Extermination . | . . . . Reinforcement . | . . . . Assault . | . . . . Garrison . | . . . . Intercept . | . . . . Searches Triggered . | . . . . Construction Impeded . | . . . . Haulers Reinforced . | . . . . Active Scanning Responses . | . . . . Cargo Convoy Interrupts . | . . . . Stealth | -11 -10 -10 -10 --------- Run | Yrd Mat Min Sub Distress Signals 2 | . 2 . . Communications Jammed . | . . . . Distress Signals . | . . . . Times Spotted 29 | . 18 2 9 Peak Tracking Total 4 | . 4 2 2 Tactical Retreats 1 | . 1 . . Traps | -11 -10 -10 -10 ------- Run | Yrd Mat Min Sub Traps Triggered . | . . . . Indirectly . | . . . . Trap Hack Attempts . | . . . . Triggered . | . . . . Disarmed . | . . . . Reprogrammed . | . . . . Reused 1 | . . . 1 Traps Extracted . | . . . . Installed 1 | . . . 1 Triggered . | . . . . Most Traps Carried 1 | . . . 1 Machines | -11 -10 -10 -10 ---------- Run | Yrd Mat Min Sub Machines Disabled 5 | . 4 1 . Max in Single Turn 2 | . 2 1 . Machines Repaired . | . . . . Machines Dismantled . | . . . . Machines Sabotaged . | . . . . Overloaded Fab Kills . | . . . . Hacking | -11 -10 -10 -10 --------- Run | Yrd Mat Min Sub Machines Accessed 7 | . 7 . . Terminals 7 | . 7 . . Fabricators . | . . . . Repair Stations . | . . . . Recycling Units . | . . . . Scanalyzers . | . . . . Garrison Access . | . . . . Total Hacks 27 | . 27 . . Successful 10 | . 10 . . Failed 16 | . 16 . . Catastrophic 2 | . 2 . . Database Lockouts 1 | . 1 . . Manual 7 | . 7 . . Terminals 27 | . 27 . . Fabricators . | . . . . Repair Stations . | . . . . Recycling Units . | . . . . Scanalyzers . | . . . . Garrison Access . | . . . . Terminal Hacks 10 | . 10 . . Robot Analysis 2 | . 2 . . Prototype ID Bank 4 | . 4 . . Unreport Threat 1 | . 1 . . Recall Investigation 1 | . 1 . . Hauler Manifests 1 | . 1 . . Zone Layout 1 | . 1 . . Fabricator Hacks . | . . . . Repair Station Hacks . | . . . . Recycling Unit Hacks . | . . . . Scanalyzer . | . . . . Garrison Access Hacks . | . . . . Unauthorized Hacks . | . . . . Terminals . | . . . . Fabricators . | . . . . Repair Stations . | . . . . Recycling Units . | . . . . Scanalyzers . | . . . . Garrison Access . | . . . . Data Cores Recovered . | . . . . Used . | . . . . Hacking Detections 6 | . 6 . . Full Trace Events 4 | . 4 . . Feedback Events . | . . . . Feedback Blocked . | . . . . Robot Schematics Acquired . | . . . . Robots Built . | . . . . Authchips . | . . . . Time . | . . . . Total Robot Build Rating . | . . . . Part Schematics Acquired . | . . . . Parts Built . | . . . . Authchips . | . . . . Time . | . . . . Total Part Build Rating . | . . . . Parts Repaired . | . . . . Time . | . . . . Parts Recycled . | . . . . Recycled Matter . | . . . . Retrieved Matter . | . . . . Retrieved Components . | . . . . Parts Scanalyzed . | . . . . Part Schematics Acquired . | . . . . Parts Damaged . | . . . . Bothacking | -11 -10 -10 -10 ------------ Run | Yrd Mat Min Sub Used RIF Installer . | . . . . Robots Hacked . | . . . . Non-combat . | . . . . Combat . | . . . . Robot Hacks Applied . | . . . . Relay Couplers Released . | . . . . Fabnet Peak Effective % . | . . . . Robots Rewired . | . . . . Allies Hacked . | . . . . Hacks Repelled . | . . . . Allies | -11 -10 -10 -10 -------- Run | Yrd Mat Min Sub Total Allies . | . . . . Largest Group . | . . . . Highest-Rated Group . | . . . . Highest-Rated Ally . | . . . . Total Orders . | . . . . Ally Attacks . | . . . . Total Damage . | . . . . Kills . | . . . . Allies Corrupted . | . . . . Allies Melted . | . . . . Intel | -11 -10 -10 -10 ------- Run | Yrd Mat Min Sub Robot Analysis Total 2 | . 2 . . Derelict Logs Recovered . | . . . . Drone Launches . | . . . . Drone Recoveries . | . . . . Exploration | -11 -10 -10 -10 ------------- Run | Yrd Mat Min Sub Turns Passed 1491 | 81 842 227 341 Spaces Moved 1288 | 43 740 183 322 Core 1 | 1 . . . Treads . | . . . . Legs . | . . . . Wheels 1287 | 42 740 183 322 Hover . | . . . . Flight . | . . . . Fastest Speed 50 | 50 80 80 80 Average Speed 84 | 87 87 80 80 Slowest Speed 95 | 90 95 80 95 Overloaded Moves . | . . . . Propulsion Burnouts . | . . . . Robots Hopped . | . . . . Cave-ins Triggered . | . . . . Exploration Rate (%) 41 | 4 94 34 34 Regions Visited 3 Branch Regions 2 Pre-discovered Areas . | . . . . Known Exits Taken . | . . . . Unknown Exits Taken 3 | 1 1 1 . Scrap Searched 2 | . . . 2 Spaces Dug . | . . . . Terrain Destroyed 215 | . 100 8 107 Melee . | . . . . Projectile . | . . . . AOE 215 | . 100 8 107 Terrain Rammed . | . . . . Walls Destroyed . | . . . . Machines Disabled . | . . . . Actions | -11 -10 -10 -10 --------- Run | Yrd Mat Min Sub Total 1514 | 61 860 223 370 Wait 16 | . 5 9 2 Move 1285 | 42 739 182 322 Hop . | . . . . Pick Up 27 | 1 21 2 3 Fast Attach 14 | 6 6 1 1 Attach 3 | . . . 3 Detach 2 | . 1 . 1 Swap 27 | . 17 4 6 Drop 34 | . 25 4 5 Fire 105 | 12 46 21 26 Melee . | . . . . Ram . | . . . . Kick . | . . . . Crush . | . . . . Escape Stasis . | . . . . Rewire . | . . . . Trap 1 | . . . 1 Miscellaneous . | . . . . Route ------- -11/Scrapyard -10/Materials (discovered 6 exits: [*Mat x3] / [*Min x2] / [*Sub]) -10/Mines (discovered 2 exits: [*Mat] / [*Sub]) -10/Subcaves History --------- Turn | Location | Event 21 | -11/Scrapyard | Discovered new exit (range 16) 82 | -11/Scrapyard | Entered Materials 111 | -10/Materials | Central database locked down 121 | -10/Materials | Discovered new exit (range 8) 194 | -10/Materials | Discovered new exit (range 8) 240 | -10/Materials | Discovered new exit (range 14) 300 | -10/Materials | Build established: Mutant 437 | -10/Materials | Discovered new exit (range 12) 566 | -10/Materials | Discovered new exit (range 10) 872 | -10/Materials | Discovered new exit (range 8) 924 | -10/Materials | Entered Mines 1108 | -10/Mines | Discovered new exit (range 6) 1113 | -10/Mines | Met a Derelict testing a Signal Generator 1120 | -10/Mines | Found Signal Generator 1143 | -10/Mines | Discovered new exit (range 9) 1151 | -10/Mines | Entered Subcaves 1167 | -10/Subcaves | Shifting Twisted Machinery released Sub. Optics 1194 | -10/Subcaves | Shifting Twisted Machinery released Sub. Laser 1311 | -10/Subcaves | Shifting Twisted Machinery released Battle Cannon 1318 | -10/Subcaves | Ambushed by Subdweller buried in earth 1319 | -10/Subcaves | Core integrity fell below 50% 1323 | -10/Subcaves | Core integrity fell below 20% 1401 | -10/Subcaves | Shifting Twisted Machinery released Shrapnel Trap 1492 | -10/Subcaves | Destroyed by IQ-BTD(R) with Subdweller Machine Gun Last Messages --------------- 01415_ Acquired Shrapnel Trap. 01429_ Searching scrap... 01429_ Found Hvy. Battle Rifle. 01429_ Found Sub. Monowheel. 01429_ Found 45 Matter. 01430_ Acquired 45 matter. 01431_ Searching scrap... 01431_ Found Sub. Machine Gun. 01431_ Found 64 Matter. 01432_ Acquired 64 matter. 01444_ Dropped Shrapnel Trap. 01444_ Installed Shrapnel Trap. 01459_ Acquired 42 matter. 01470_ GW-9MI(R) destroyed. 01471_ 2M-BQK(R): "ARGHSUB!" 01473_ LD-BNB(R): "NOSTUCKSUB!" 01474_ 2M-BQK(R) destroyed. 01480_ Sub. Shrapnel Launcher shoots sparks and powers down. 01486_ LD-BNB(R) destroyed. 01487_ IQ-BTD(R): "ARGHSUB!" Map ----- +----------------------------------------------------+ | ?????????????????????????????????????????????????? | | ?????????????????????????????????????????????????? | | ?????????????????????????????????????????????????? | | ?????????????????????????????????????????????????? | | ?????????????????????????????????????????????????? | | ?????????????????????????????????????????????????? | | ?????????????????????????????????????????????????? | | ?????????????????????????????????????????????????? | | ?????????????????????????????????????????????????? | | ?????????????????????????????????????????????????? | | ?????????????????????????????????????????????????? | | ????????????###?####?????????????????????????????? | | ????????##### ### ##????????????????????????????? | | ???###### # # # =##???????????????????????????? | | ??## ### ## [ #???????????????????????????? | | ??# ! ##?######[##??????????????????????????? | | ??#" # #??????## #??????????????????????????? | | ### #####???????# #??????????????????????????? | | "" #??#"#?????# ##?????????????????????????? | | """ #??#""#???## #?????????????????????????? | | """"" #?? "# #??# ###????????????????????????? | | """####???"" ?# !" #????????????????????????? | | "##????????# ##" " #????????????????????????? | | ##??????????# ;; ""#????????????????????????? | | """"#??????????## #;; !;####???###???????????????? | | #??????????# # @ ## #???????????????? | | #??????????## # "" ?????????????? | | #?????? "" ?????????????? | | # #??? ### # "" ?????????????? | | ? ? # #?##? "" ??????????????? | | ? ! ???? #??????????????? | | ? ### & # ####????"##??????????????? | | ? ##??# ###????????#???????????????? | | ?##????###??? R ????????????????????????????? | | ????????????? ?????????????????????????????? | | ?????????????? ?????????????????????????????? | | ?????????????? ??????????????????????????????? | | ????????????????# ???????????????????????????????? | | ?????????????????????????????????????????????????? | | ?????????????????????????????????????????????????? | | ?????????????????????????????????????????????????? | | ?????????????????????????????????????????????????? | | ?????????????????????????????????????????????????? | | ?????????????????????????????????????????????????? | | ?????????????????????????????????????????????????? | | ?????????????????????????????????????????????????? | | ?????????????????????????????????????????????????? | | ?????????????????????????????????????????????????? | | ?????????????????????????????????????????????????? | | | +----------------------------------------------------+ Best States ------------- Heat Dissipation 25 Energy Generation 14 Energy Capacity 160 Matter Stores 300 Matter Capacity 300 Sight Range 16 Terrain Scan Density 10 Armor Coverage 150 Weapon Shielding 33 Evasion (%) 44 Item Schematics ----------------- None Robot Schematics ------------------ None Fabricated ------------ Nothing Alien Tech Used ----------------- None Achievements -------------- None Challenges ------------ None Game ------ Seed LobotomyLegCleaver Manual? 0 Play Time 00:17:50 Cumulative 463.0 hours Start 2024.09.02 @ 11:38:36 End 2024.09.02 @ 11:52:57 Sessions 1 Manual Loads 0 Difficulty Rogue Special Mode None Game No. 174 Rogue 174 Adventurer 0 Explorer 0 Win Type - Total 4 Types 0/0/2/2/0/0/0/0/0 Lore% 46 Gallery% 75 Achievement% 66 Wizard Run 0 Options --------- Layout 0 ASCII 0 Keyboard 1 Movement Arrows Keybinds 0 Fullscreen 1 Font 12/Proggy Map View 83x54 Zoom Use 0% Tactical HUD 1 Map Filters NONE Filters NONE Steam 0 RUN: dba57f56-84a2-4f57-afaa-daeda01ac46b